[Event "2nd Late Dr Abul K C Chess-ch A 2022"]
[Site "Dhaka"]
[Date "2022.07.06"]
[Round "5.5"]
[White "Chowdhury, Sohel"]
[Black "Mohammad Minhaz Uddin"]
[Result "0-1"]
[ECO "C42"]
[WhiteElo "2015"]
[BlackElo "2260"]
[Annotator "TA"]
[PlyCount "106"]
[EventDate "2022.07.03"]
[EventCountry "BAN"]
[SourceTitle "playchess.com"]
[Source "ChessBase"]
[SourceQuality "1"]
[TimeControl "5400+30"]

{[%evp 22,106,0,-6,-8,-10,38,-19,-22,-24,-24,-24,-25,-25,-25,-24,-24,-24,-24,-24,-25,-37,-31,-37,-19,-23,0,-6,0,0,0,0,0,0,3,-14,-8,-29,-15,-16,0,-60,-53,-63,-29,-43,-46,-37,-49,-67,-72,-268,-307,-299,-256,-190,-195,-613,-613,-613,-613,-613,-613,-2420,-2183,-2349,-2105,-2189,-1769,-1454,-1546,-2525,-2500,-5700,-1481,-29976,-29977,-29978,-29979,-29980,-29981,-29981,-29982,-29982,-29983,-29986,-29987]} 1. e4 {[%emt 0:00:37]} e5 {[%emt 0:01:54]} 2. Nf3 {[%emt 0:00:02]} Nf6 {[%emt 0:00:02]} 3. Nxe5 {[%emt 0:00:40]} d6 {[%emt 0:00:01]} 4. Nf3 {[%emt 0:00:17]} Nxe4 {[%emt 0:00:03]} 5. d4 {[%emt 0:00:53]} d5 {[%emt 0:00:01]} 6. Bd3 {[%emt 0:00:56]} Nc6 {[%emt 0:00:02]} 7. O-O {[%emt 0:03:17]} Be7 {[%emt 0:00:03]} 8. c4 {[%emt 0:00:52]} Nb4 {[%emt 0:00:02]} 9. cxd5 {[%emt 0:08:39]} Qxd5 {[%emt 0:02:30]} 10. Nc3 {[%emt 0:01:17]} Nxc3 {[%emt 0:00:03]} 11. bxc3 {[%emt 0:00:13]} Nxd3 {[%emt 0:00:03]} 12. Qxd3 {[%emt 0:00:24]} O-O {[%emt 0:02:23] [#] C42: Petroff Defence: 3 Nxe5 and unusual White 3rd moves.} 13. c4 $146 {[%emt 0:02:47]} ({Predecessor:} 13. Re1 Bf5 14. Qf1 Rfe8 15. Re5 Qd7 16. Qb5 Qxb5 17. Rxb5 Be4 18. Bf4 Bd6 19. Bxd6 cxd6 20. Ng5 {0-1 (68) Aydemir,D-Yanik,M Kemer 2007}) 13... Qh5 {[%emt 0:02:57]} (13... Bf5 $11 {is more appropriate.} 14. Qb3 Qd7) 14. Ba3 {[%emt 0:01:51]} ({Better is} 14. Re1 $14 Bb4 15. Bd2) 14... Bf5 $11 {[%emt 0:01:37] The position is equal.} 15. Qe3 {[%emt 0:05:39]} Bxa3 {[%emt 0:00:04]} 16. Qxa3 {[%emt 0:00:14]} Be4 {[%emt 0:00:04]} 17. Rfe1 {[%emt 0:10:56]} Bxf3 {[%emt 0:00:42]} 18. Qxf3 {[%emt 0:00:03]} Qxf3 {[%emt 0:00:02]} 19. gxf3 {[%emt 0:00:02][%mdl 4096] Endgame KRR-KRR} Rfe8 {[%emt 0:00:55]} 20. Re3 {[%emt 0:00:11]} Kf8 {[%emt 0:00:20]} 21. Rb1 {[%emt 0:02:03]} b6 {[%emt 0:00:34]} 22. d5 {[%emt 0:00:40]} Re7 {[%emt 0:01:56]} 23. a4 {[%emt 0:04:33]} Rae8 {[%emt 0:01:48]} 24. Rbe1 {[%emt 0:00:43]} f5 {[%emt 0:01:11]} 25. Kg2 {[%emt 0:00:47]} Kf7 {[%emt 0:00:19]} 26. h4 {[%emt 0:09:36]} Kf6 {[%emt 0:04:41]} 27. Kg3 {[%emt 0:05:49]} h6 {[%emt 0:03:33]} 28. Kg2 {[%emt 0:04:37]} Re5 {[%emt 0:04:54]} 29. R1e2 {[%emt 0:01:36]} f4 {[%emt 0:01:52]} 30. Re4 {[%emt 0:02:40]} Kf5 {[%emt 0:00:02][%cal Re5e4]} 31. Rxe5+ {[%emt 0:07:43]} (31. c5 $1 $11) 31... Rxe5 {[%emt 0:00:03] KR-KR} 32. Rc2 {[%emt 0:02:57][%cal Oa4a5]} Kf6 {[%emt 0:04:29]} (32... Re7 $5 {[%cal Rf5e5]}) 33. a5 {[%emt 0:01:25]} Ke7 {[%emt 0:00:16]} 34. axb6 {[%emt 0:01:29]} axb6 {[%emt 0:00:02] And now ...Kd6 would win.} 35. Kh3 {[%emt 0:03:14]} h5 {[%emt 0:03:32][%cal Bh6h5,Bh5h4,Bh4h3,Bh3h2][%mdl 32] Threatens to win with ...Kd6.} 36. Kg2 $2 {[%emt 0:02:50] [#] Now White is beyond hope.} (36. Rc1 $17) 36... Kd6 $1 $19 {[%emt 0:00:26]} 37. Kf1 {[%emt 0:01:22]} g5 {[%emt 0:16:42]} 38. hxg5 {[%emt 0:01:58]} Rxg5 {[%emt 0:00:17]} 39. Rc1 $2 {[%emt 0:01:43]} (39. Re2) 39... h4 {[%emt 0:08:35]} 40. Ke2 {[%emt 0:00:59]} h3 {[%emt 0:00:02]} 41. Rh1 {[%emt 0:01:13]} Rh5 {[%emt 0:00:01] [#] ...h2 is the strong threat.} 42. Kd3 {[%emt 0:00:46]} h2 {[%emt 0:02:45]} 43. Ke4 {[%emt 0:02:06]} Rh4 {[%emt 0:00:32]} 44. Kd4 {[%emt 0:00:15]} Rh8 {[%emt 0:00:33]} 45. Ke4 {[%emt 0:00:14]} Kc5 {[%emt 0:00:02]} 46. Kxf4 {[%emt 0:02:50]} Kxc4 {[%emt 0:40:35] Hoping for ...b5.} 47. Ke5 {[%emt 0:01:14]} Kd3 {[%emt 0:00:00] ( -> ...Ke2)} 48. f4 {[%emt 0:00:30]} Ke2 {[%emt 0:00:00] Black mates.} 49. f5 {[%emt 0:02:19]} Kxf2 {[%emt 0:00:00]} 50. f6 {[%emt 0:01:17]} Kg2 {[%emt 0:00:00]} 51. Rxh2+ {[%emt 0:01:37]} Kxh2 {[%emt 0:00:00]} 52. Ke6 {[%emt 0:00:13]} b5 {[%emt 0:00:00][%cal Bb6b5,Bb5b4][%mdl 32]} 53. Kd7 {[%emt 0:01:24]} b4 {[%emt 0:00:00] Weighted Error Value: White=0.69/Black=0.05 (flawless)} 0-1

[Event "2nd Late Dr Abul K C Chess-ch A 2022"]
[Site "Dhaka"]
[Date "2022.07.06"]
[Round "6.2"]
[White "Subrota, Biswas"]
[Black "Zia, Tahsin Tajwar"]
[Result "1-0"]
[ECO "B12"]
[WhiteElo "2253"]
[BlackElo "2307"]
[Annotator "TA"]
[PlyCount "95"]
[EventDate "2022.07.03"]
[EventCountry "BAN"]
[SourceTitle "playchess.com"]
[Source "ChessBase"]
[SourceQuality "1"]
[TimeControl "5400+30"]

{[%evp 9,95,4,12,18,19,-18,-26,-29,-34,-21,-29,-24,-25,-51,-44,-20,51,33,18,-17,-17,-29,0,-24,0,-21,-29,-47,-30,-43,-30,-45,-36,-38,0,-9,0,0,16,13,29,0,8,23,20,35,133,137,138,74,332,140,192,155,125,137,121,93,182,92,125,0,55,0,0,0,133,142,513,429,5285,5285,5281,5277,5269,5269,5422,5414,29983,29984,29984,29985,29984,29985,29986,29987,29986,29986]} 1. e4 {[%emt 0:08:41]} c6 {[%emt 0:00:15]} 2. d4 {[%emt 0:00:09]} d5 {[%emt 0:00:06]} 3. e5 {[%emt 0:00:02]} Bf5 {[%emt 0:00:12]} 4. h4 {[%emt 0:00:01]} h5 {[%emt 0:00:07]} 5. Bd3 {[%emt 0:00:04]} Bxd3 {[%emt 0:00:14]} 6. Qxd3 {[%emt 0:00:06][%cal Oe5e6] B12: Caro-Kann: Advance Variation.} Qa5+ {[%emt 0:00:13]} 7. b4 {[%emt 0:00:07]} Qxb4+ {[%emt 0:00:42]} 8. Nd2 {[%emt 0:00:02] Rb1 is the strong threat. Black has an edge.} e6 {[%emt 0:00:08]} 9. Rb1 {[%emt 0:00:04]} Qe7 {[%emt 0:00:05]} 10. c4 {[%emt 0:01:43]} Nh6 {[%emt 0:12:48]} 11. Ne2 {[%emt 0:02:23]} Nf5 {[%emt 1:21:10]} 12. Ng3 g6 {[%emt 0:00:00] [#]} (12... Nxh4 $11 13. cxd5 cxd5) 13. Nxf5 $146 {[%emt 0:00:03]} ({Predecessor:} 13. O-O Bg7 14. Ba3 Qd7 15. Nxf5 gxf5 16. Bd6 Bf8 17. c5 Na6 18. Rb3 Bxd6 19. exd6 {1-0 (38) Grieve,H (2320)-Quirke,J (2108) Chess.com INT 2021}) 13... gxf5 {[%emt 0:00:00]} 14. Nf3 {[%emt 0:00:07]} dxc4 {[%emt 0:00:00]} 15. Qxc4 {[%emt 0:00:07]} b5 {[%emt 0:00:00]} 16. Qc3 {[%emt 0:04:40]} Qd7 {[%emt 0:00:00]} 17. O-O {[%emt 0:05:26][%cal Od4d5]} Na6 {[%emt 0:00:00][%cal Bb8a6,Ba6c7,Bc7d5][%mdl 32]} 18. Bg5 {[%emt 0:00:56][%cal Od4d5]} Nc7 {[%emt 0:00:00]} 19. Rfc1 {[%emt 0:02:49]} Nd5 {[%emt 0:00:00]} 20. Qa5 {[%emt 0:04:41]} Qb7 {[%emt 0:00:00]} 21. Rc2 {[%emt 0:02:38]} Kd7 {[%emt 0:00:00]} 22. Bf6 {[%emt 0:01:36]} Rg8 {[%emt 0:00:00]} 23. Ng5 {[%emt 0:01:24]} ({But not} 23. Rbc1 $2 Bb4 24. Qxb4 Nxb4 $19) 23... Qb6 {[%emt 0:00:00]} 24. Qd2 {[%emt 0:00:09]} Bh6 {[%emt 0:00:00]} (24... Nxf6 $2 25. exf6 Bh6 26. Qb4 $18) 25. Qd1 {[%emt 0:03:23]} (25. Qe2 $5 {[%cal Re2h5]} Bxg5 26. Bxg5 $11) 25... Nxf6 {[%emt 0:00:00]} 26. exf6 {[%emt 0:00:01]} Bxg5 {[%emt 0:00:00]} 27. Qxh5 {[%emt 0:00:24]} Raf8 {[%emt 0:00:00]} 28. hxg5 $16 {[%emt 0:00:54]} Rh8 {[%emt 0:00:00]} 29. Qe2 {[%emt 0:06:19] 0x0.001670bd73b5dp-1022s more active pieces.} (29. Qf3 $142) 29... Rh4 $2 {[%emt 0:00:00][%mdl 8192]} (29... Rh7 $16 30. g3 Rfh8) 30. g3 {[%emt 0:00:21]} (30. d5 $1 $18 {[%cal Rd5e6] is the precise move to win.} Re4 31. dxe6+ Rxe6 32. Qd3+ Kc8 33. Rxb5) 30... Re4 {[%emt 0:00:00]} (30... Rxd4 $16 31. Rbc1 Rd6) 31. Qf3 {[%emt 0:00:16]} Rxd4 {[%emt 0:00:29]} 32. Rbc1 {[%emt 0:01:26][%cal Rc2c6]} Rd6 {[%emt 0:00:32]} 33. Rd1 {[%emt 0:02:18][%mdl 1024] White has strong compensation.} Rd5 {[%emt 0:00:06] [#]} (33... Rxd1+ $16 34. Qxd1+ Kc7) 34. Kg2 {[%emt 0:04:30]} (34. Rxd5+ $1 $18 cxd5 35. Qf4) 34... Rh8 {[%emt 0:02:04]} 35. Rdc1 {[%emt 0:02:01]} (35. Rcc1 $16) 35... Rd6 {[%emt 0:00:09]} ({Black should try} 35... c5 $11) 36. Qf4 {[%emt 0:00:11]} (36. Qc3 $1 $14) 36... a5 $11 {[%emt 0:03:23]} 37. Rd2 $36 {[%emt 0:03:32][%mdl 2048] White fights for an advantage. The board is on fire.} Rd5 {[%emt 0:00:05] [#]} (37... Qc7 $1 $11 {keeps the balance.}) 38. Rdd1 $1 $16 {[%emt 0:01:03]} Qb8 $2 {[%emt 0:01:55][%mdl 8192]} (38... Qa7 $16) 39. Rxd5+ $18 {[%emt 0:00:12]} cxd5 {[%emt 0:00:06][%mdl 4096] Endgame KQR-KQR} (39... exd5 $142 40. Qxf5+ Kd6) 40. Qd4 {[%emt 0:00:24]} Rc8 {[%emt 0:02:34]} 41. Rxc8 {[%emt 0:00:10][%mdl 64] Deflection} Qxc8 {[%emt 0:00:09] KQ-KQ} 42. Qa7+ {[%emt 0:00:06][%mdl 64] Skewer, Double Attack} Kd6 {[%emt 0:00:07]} 43. Qxf7 {[%emt 0:03:58] Qe7+ would kill now.} d4 {[%emt 0:01:15]} 44. Qe7+ {[%emt 0:00:45] White mates.} Ke5 {[%emt 0:00:10]} 45. f7 {[%emt 0:00:42]} Qc6+ {[%emt 0:00:05]} 46. Kh2 {[%emt 0:03:51]} Qc2 {[%emt 0:00:06]} 47. Qb7 {[%emt 0:00:37]} ({Inferior is} 47. f8=Q Qxf2+ 48. Kh3 Qf1+ 49. Kh2 Qf2+ 50. Kh3 Qf1+ 51. Kh2 Qf2+ $11) 47... Qxf2+ {[%emt 0:03:03]} 48. Qg2 {[%emt 0:00:35] Weighted Error Value: White=0.20 (precise) /Black=0.67} 1-0

[Event "2nd Late Dr Abul K C Chess-ch A 2022"]
[Site "Dhaka"]
[Date "2022.07.06"]
[Round "6.3"]
[White "Mohammad Minhaz Uddin"]
[Black "Ahmed, Shafiq"]
[Result "1-0"]
[ECO "C10"]
[WhiteElo "2260"]
[BlackElo "2100"]
[Annotator "TA"]
[PlyCount "127"]
[EventDate "2022.07.03"]
[EventCountry "BAN"]
[SourceTitle "playchess.com"]
[Source "ChessBase"]
[SourceQuality "1"]
[TimeControl "5400+30"]

{[%evp 17,127,23,33,29,57,21,54,43,37,40,145,154,151,152,188,185,200,207,185,162,154,149,193,185,341,220,218,205,216,209,217,199,209,207,210,209,211,192,193,143,202,47,45,46,48,42,98,77,88,69,82,69,104,104,99,48,54,48,55,55,55,55,94,99,118,80,118,111,141,70,181,174,154,167,155,137,513,177,190,191,364,287,291,282,628,626,610,614,609,598,587,583,564,576,1046,1046,1018,997,984,977,932,852,29976,29977,29977,29978,29977,29978,29978,29979,29975,29974]} 1. e4 {[%emt 0:00:04]} e6 {[%emt 0:00:16]} 2. d4 {[%emt 0:00:02]} d5 {[%emt 0:00:25]} 3. Nd2 {[%emt 0:00:02]} dxe4 {[%emt 0:04:53]} 4. Nxe4 {[%emt 0:00:02]} Nf6 {[%emt 0:01:06]} 5. Bd3 {[%emt 0:00:07]} Be7 {[%emt 0:01:17]} 6. Nf3 {[%emt 0:00:02]} Nbd7 {[%emt 0:00:30]} 7. Qe2 {[%emt 0:00:06]} O-O {[%emt 0:01:31]} 8. O-O {[%emt 0:01:47]} b6 {[%emt 0:01:59]} 9. Bf4 {[%emt 0:04:47]} Bb7 {[%emt 0:02:18]} 10. Rad1 {[%emt 0:00:45] C10: French with 3 Nc3: Unusual Black 3rd moves and 3...dxe4.} Nd5 {[%emt 0:05:00]} 11. Bd2 {[%emt 0:02:47]} Nb4 {[%emt 0:01:32]} 12. Bxb4 {[%emt 0:01:04] White is slightly better.} Bxb4 {[%emt 0:00:04] [#]} 13. Ne5 $146 {[%emt 0:00:32]} ({Predecessor:} 13. Neg5 Nf6 14. c3 Bd6 15. Ne5 h6 16. Ne4 Nxe4 17. Bxe4 Bxe4 18. Qxe4 Bxe5 19. dxe5 {1-0 (54) Gonzalez Mesa,D (2269)-Rodriguez Bravo,A Havana 2009}) 13... Nf6 {[%emt 0:02:11]} (13... Nxe5 $14 14. dxe5 Qh4) 14. Nxf6+ $1 $16 {[%emt 0:00:54]} Qxf6 {[%emt 0:02:12] [#]} 15. Nd7 $1 {[%emt 0:00:12][%csl LRf6,LRf8]} (15. Qh5 $6 g6 16. Qe2 Bd6 $11) 15... Qg5 {[%emt 0:00:21][%csl Gb7][%cal Rg5g2]} 16. f4 {[%emt 0:00:03] Active counter play!} Qd5 {[%emt 0:02:03]} 17. Nxf8 {[%emt 0:00:04]} Bxf8 {[%emt 0:00:13] A strong pair of Bishops.} 18. Bc4 {[%emt 0:00:32]} Qf5 {[%emt 0:02:10]} 19. Rd2 {[%emt 0:03:25]} h5 {[%emt 0:02:26]} 20. Qe5 {[%emt 0:00:28]} Qe4 $2 {[%emt 0:05:30]} (20... Rc8 21. Be2 h4 22. Qxf5 exf5) 21. Qxe4 {[%emt 0:01:14]} ({Weaker is} 21. Qxc7 Rc8 22. Qe5 Rxc4 23. Qxe4 Bxe4 $17) ({Don't do} 21. Qxh5 Qe3+ 22. Rff2 Qe1+ 23. Bf1 g6 $18) 21... Bxe4 {[%emt 0:00:09]} 22. Be2 {[%emt 0:00:08]} Bg6 {[%emt 0:00:30]} 23. Bf3 {[%emt 0:00:19]} Rd8 {[%emt 0:00:04]} 24. Rfd1 {[%emt 0:00:08]} Bd6 {[%emt 0:01:29]} 25. g3 {[%emt 0:00:05]} Kh7 {[%emt 0:01:43]} 26. Kf2 {[%emt 0:01:14]} Kh6 {[%emt 0:00:19]} 27. Ke3 {[%emt 0:00:24]} f6 {[%emt 0:00:39]} 28. h3 {[%emt 0:00:39]} (28. Be4 $18) 28... Be8 {[%emt 0:00:45]} (28... e5 $16) 29. Kf2 $2 {[%emt 0:02:14]} (29. h4 $18) 29... h4 $1 $14 {[%emt 0:00:16]} 30. Re2 {[%emt 0:02:17]} hxg3+ {[%emt 0:02:26]} 31. Kxg3 {[%emt 0:00:04] Strongly threatening h4.} g5 {[%emt 0:02:03]} ({Black should try} 31... Bf7 $14) 32. Rxe6 $16 {[%emt 0:00:07]} Bxf4+ {[%emt 0:00:15]} 33. Kg2 {[%emt 0:02:30]} Kg7 {[%emt 0:00:17]} 34. b3 {[%emt 0:13:17]} Bd7 {[%emt 0:03:36]} 35. Re7+ {[%emt 0:00:26]} Kg6 {[%emt 0:00:33]} 36. Be4+ {[%emt 0:05:58]} ({White should play} 36. Re2 $16) 36... f5 $14 {[%emt 0:00:37]} 37. Bd5 {[%emt 0:00:31]} Bd6 {[%emt 0:00:31]} 38. Re2 {[%emt 0:00:26]} Kf6 $1 {[%emt 0:01:29] Against Be6} 39. c3 {[%emt 0:02:59]} c6 {[%emt 0:01:33] [#]} 40. Bf3 {[%emt 0:04:29]} Rh8 {[%emt 0:00:11]} 41. Rf1 {[%emt 0:06:21]} Kg7 {[%emt 0:05:32]} 42. Rfe1 {[%emt 0:04:40][%cal Oe2e7] Re7+! is the strong threat.} Kf7 {[%emt 0:00:50] Inhibits Re7+.} 43. d5 {[%emt 0:05:37]} (43. c4 $16) 43... g4 {[%emt 0:04:07]} (43... c5 $1 $14) 44. hxg4 $18 {[%emt 0:00:06]} fxg4 {[%emt 0:00:26]} 45. Be4 {[%emt 0:00:02]} Rh2+ {[%emt 0:12:50]} 46. Kg1 {[%emt 0:00:07]} Rh6 {[%emt 0:01:07][%mdl 8192] This move loses the game for Black.} (46... Rxe2 $16 47. Rxe2 Bc5+ 48. Kg2 cxd5 49. Bxd5+ Kf6) 47. Rf2+ $2 {[%emt 0:02:12]} (47. dxc6 Be6 48. Rd1) 47... Kg7 {[%emt 0:00:12]} 48. dxc6 {[%emt 0:01:05]} g3 $2 {[%emt 0:00:03]} (48... Bxc6 {is a better defense.} 49. Rff1 (49. Bxc6 Bc5 $14) 49... Bg3) 49. cxd7 {[%emt 0:01:02]} gxf2+ {[%emt 0:01:10]} 50. Kxf2 {[%emt 0:37:04][%mdl 4096] Endgame KRB-KRB} Rh8 {[%emt 0:01:34]} (50... Be7 51. Bf5 Kf7) 51. Bc6 {[%emt 0:00:00]} Rf8+ {[%emt 0:01:53]} 52. Kg2 {[%emt 0:00:00]} Bc7 {[%emt 0:00:32]} 53. Re7+ {[%emt 0:00:00]} Rf7 {[%emt 0:00:44]} 54. Re8 {[%emt 0:00:00]} Rf8 {[%emt 0:00:02]} 55. Bf3 {[%emt 0:00:00]} a5 {[%emt 0:01:02]} 56. a4 {[%emt 0:00:00]} Bd8 {[%emt 0:03:18]} 57. Kf2 {[%emt 0:00:00]} Bg5 {[%emt 0:01:10]} 58. Ke2 {[%emt 0:00:00]} Bh4 {[%emt 0:00:32]} 59. Bc6 {[%emt 0:00:00]} Rh8 {[%emt 0:01:41]} 60. Rxh8 {[%emt 0:00:00] White mates.} Kxh8 {[%emt 0:00:02]} 61. Kd3 {[%emt 0:00:00]} Kg7 {[%emt 0:00:14]} 62. Kc4 {[%emt 0:00:00]} Kf8 {[%emt 0:01:02]} 63. Kb5 {[%emt 0:00:00]} Bd8 {[%emt 0:00:04]} 64. Ka6 {[%emt 0:00:00] Weighted Error Value: White=0.26 (precise) /Black=0.43} 1-0

[Event "2nd Late Dr Abul K C Chess-ch A 2022"]
[Site "Dhaka"]
[Date "2022.07.06"]
[Round "6.4"]
[White "Islam, Khandaker Aminul"]
[Black "Shawket Bin, Osman Shaon"]
[Result "1/2-1/2"]
[ECO "D02"]
[WhiteElo "2182"]
[BlackElo "2053"]
[Annotator "TA"]
[PlyCount "93"]
[EventDate "2022.07.03"]
[EventCountry "BAN"]
[SourceTitle "playchess.com"]
[Source "ChessBase"]
[SourceQuality "1"]
[TimeControl "5400+30"]

{[%evp 14,93,0,0,33,11,71,37,18,0,29,34,28,39,31,16,18,25,19,12,38,28,34,23,37,12,94,17,72,80,79,36,43,39,41,39,34,30,33,0,0,-8,-5,-13,0,-20,0,-29,-35,-39,-29,-27,-30,-31,-29,-27,-8,-16,-22,-25,-24,-30,-17,-131,-39,-45,-45,-58,-17,-17,-17,-25,-8,-15,-10,-10,-10,-10,-10,-10,-10,-10]} 1. d4 {[%emt 0:00:04]} d5 {[%emt 0:01:45]} 2. Nf3 {[%emt 0:00:10]} Nf6 {[%emt 0:00:06]} 3. Bf4 {[%emt 0:00:11]} c5 {[%emt 0:00:11]} 4. e3 {[%emt 0:00:03]} Nc6 {[%emt 0:01:08]} 5. c3 {[%emt 0:00:10]} e6 {[%emt 0:02:53]} 6. Nbd2 {[%emt 0:00:17]} Bd6 {[%emt 0:04:39] 6...Nh5 is the modern continuation.} 7. Bg3 {[%emt 0:00:06]} O-O {[%emt 0:00:33]} 8. Bd3 {[%emt 0:00:05]} Bxg3 {[%emt 0:06:50] D02: 1 d4 d5 2 Nf3 sidelines, including 2...Nf6 3 g3 and 2...Nf6 3 Bf4.} 9. hxg3 {[%emt 0:00:07]} Qd6 {[%emt 0:00:38]} (9... Qb6 $11 {keeps the balance.}) 10. dxc5 {[%emt 0:01:36]} (10. Ne5 {looks sharper.} h6 11. f4 Nd7 12. g4) 10... Qxc5 {[%emt 0:00:14] White is slightly better.} 11. e4 {[%emt 0:00:58] [#] Strongly threatening e5.} dxe4 {[%emt 0:02:04]} 12. Nxe4 {[%emt 0:00:36]} Nxe4 {[%emt 0:00:26]} 13. Bxe4 {[%emt 0:00:02]} h6 {[%emt 0:05:16] [#]} 14. O-O $146 {[%emt 0:00:41]} ({Predecessor:} 14. g4 Ne5 15. Rh5 Nxf3+ 16. Qxf3 f5 17. gxf5 exf5 18. Bd5+ Kh8 19. O-O-O Bd7 20. Qf4 {1-0 (33) Pert,N (2558)-Ryan,J (2293) Dublin 2020}) 14... Ne5 {[%emt 0:05:34]} 15. Re1 {[%emt 0:00:42][%cal Bf1e1,Be1e4,Be4d4,Bd4d6][%mdl 32] Threatens to win with Nxe5.} Ng4 {[%emt 0:09:02]} 16. Qd4 {[%emt 0:03:18]} Qc7 {[%emt 0:03:17]} 17. Rad1 {[%emt 0:00:21]} Nf6 {[%emt 0:00:57]} 18. Ne5 {[%emt 0:01:58]} Nxe4 {[%emt 0:06:25]} 19. Rxe4 {[%emt 0:00:16]} (19. Qxe4 {with more complications.} f6 20. Nc4 e5 21. Rd6) 19... Re8 {[%emt 0:14:23]} (19... f6 $1 $11) 20. Qc4 {[%emt 0:21:19]} (20. Qa4 $16 Rf8 21. Qc4 Qxc4 22. Rxc4) 20... Qe7 {[%emt 0:06:18]} (20... Qxc4 $11 21. Nxc4 (21. Rxc4 f6 $11) 21... b6) 21. Red4 $16 {[%emt 0:01:35] 0x0.00242f10bb7cdp-1022s more active pieces. The black rooks are badly placed.} f6 {[%emt 0:06:55]} 22. Nf3 {[%emt 0:05:01]} Kh7 {[%emt 0:03:50]} 23. Qd3+ {[%emt 0:10:00]} Kg8 {[%emt 0:00:02]} 24. Rd6 {[%emt 0:01:59]} e5 {[%emt 0:00:49]} 25. Qe4 {[%emt 0:11:47]} Be6 {[%emt 0:00:55]} 26. b3 {[%emt 0:01:03]} b6 {[%emt 0:01:27]} 27. Qa4 {[%emt 0:02:48]} Rac8 {[%emt 0:01:25]} 28. Qb4 {[%emt 0:01:43]} Qc7 {[%emt 0:00:54]} 29. c4 {[%emt 0:00:34]} Rcd8 {[%emt 0:02:12]} 30. Kf1 {[%emt 0:03:43]} Kf7 {[%emt 0:01:02][%cal Bg8f7,Bf7e7,Be7d8,Bd8c7,Bc7d7][%mdl 32]} 31. Ne1 {[%emt 0:01:08]} Rxd6 {[%emt 0:00:29]} 32. Qxd6 {[%emt 0:00:11]} Qxd6 {[%emt 0:00:09]} 33. Rxd6 $15 {[%emt 0:00:01][%mdl 4096] Endgame KRB-KRN} Ke7 {[%emt 0:00:18]} 34. Rd2 {[%emt 0:00:04]} Bf5 {[%emt 0:01:05]} 35. Ke2 {[%emt 0:00:09]} Rd8 {[%emt 0:00:26]} 36. Rxd8 {[%emt 0:00:13]} Kxd8 $11 {[%emt 0:00:01] KB-KN} 37. Kd2 {[%emt 0:00:11]} Kc7 {[%emt 0:00:51]} 38. b4 {[%emt 0:01:27] [#]} (38. f3 $11 {remains equal.}) 38... g5 {[%emt 0:03:00]} (38... Be6 $1 $17 39. Kc3 b5 40. cxb5 Bxa2) 39. a3 {[%emt 0:00:29]} h5 {[%emt 0:00:34]} 40. Ke3 {[%emt 0:01:24]} Bb1 {[%emt 0:01:14]} (40... Be6 $5 {[%cal Re6c4]}) 41. Nf3 {[%emt 0:00:24]} Kd7 {[%emt 0:01:27]} 42. Nd2 {[%emt 0:01:07]} Bc2 {[%emt 0:00:04]} 43. Ne4 {[%emt 0:10:47] The position is equal.} Bxe4 {[%emt 0:00:41]} 44. Kxe4 {[%emt 0:00:02] Black must now prevent Kf5.} Ke6 {[%emt 0:00:14]} 45. Ke3 {[%emt 0:04:51]} f5 {[%emt 0:00:06]} 46. Kd3 {[%emt 0:00:26]} Kd6 {[%emt 0:00:41]} 47. Ke3 {[%emt 0:17:53] Weighted Error Value: White=0.17 (very precise) /Black=0.20 (precise)} 1/2-1/2